[Event "Late-Titled-Tuesday-Blitz-February-20-2024"]
[Site "Chess.com"]
[Date "2024.02.20"]
[Round "10"]
[White "Jaka_Brilej"]
[Black "micke12a"]
[Result "0-1"]
[WhiteElo "2482"]
[BlackElo "2375"]
[TimeControl "180+1"]
[EndTime "15:52:57 PST"]
[Termination "micke12a won on time"]

1. d4 {[%clk 0:02:46.1]} 1... Nf6 {[%clk 0:02:59.4]} 2. c4 {[%clk 0:02:45.3]}
2... g6 {[%clk 0:02:59.3]} 3. Nc3 {[%clk 0:02:43.9]} 3... d5 {[%clk 0:02:59.5]}
4. Nf3 {[%clk 0:02:43.4]} 4... Bg7 {[%clk 0:02:59.2]} 5. Bg5 {[%clk 0:02:43.9]}
5... Ne4 {[%clk 0:02:58.9]} 6. Bf4 {[%clk 0:02:44.6]} 6... Nxc3 {[%clk
0:02:57.9]} 7. bxc3 {[%clk 0:02:45.5]} 7... O-O {[%clk 0:02:57.8]} 8. e3 {[%clk
0:02:43.4]} 8... dxc4 {[%clk 0:02:56]} 9. Bxc4 {[%clk 0:02:42.8]} 9... c5 {[%clk
0:02:46.6]} 10. O-O {[%clk 0:02:42.2]} 10... Nc6 {[%clk 0:02:47.2]} 11. Rb1
{[%clk 0:02:34.5]} 11... Qa5 {[%clk 0:02:46.2]} 12. Rb5 {[%clk 0:02:31.6]} 12...
Qxc3 {[%clk 0:02:44.2]} 13. Rxc5 {[%clk 0:02:29.9]} 13... Qb4 {[%clk 0:02:33.6]}
14. Qb3 {[%clk 0:02:14.7]} 14... Qxb3 {[%clk 0:02:31.5]} 15. Bxb3 {[%clk
0:02:15.6]} 15... Bd7 {[%clk 0:02:21.9]} 16. d5 {[%clk 0:02:06.8]} 16... Nb4
{[%clk 0:02:13.2]} 17. Rc7 {[%clk 0:02:07.4]} 17... Bb5 {[%clk 0:02:12.8]} 18.
Rd1 {[%clk 0:01:53.5]} 18... a5 {[%clk 0:02:04.4]} 19. Rxb7 {[%clk 0:01:52.2]}
19... Ba6 {[%clk 0:01:56.4]} 20. Rxe7 {[%clk 0:01:50.9]} 20... a4 {[%clk
0:01:53.6]} 21. Bd6 {[%clk 0:01:46.4]} 21... axb3 {[%clk 0:01:44.2]} 22. Bxb4
{[%clk 0:01:45.3]} 22... Be2 {[%clk 0:01:41.2]} 0-1

[Event "Late-Titled-Tuesday-Blitz-February-20-2024"]
[Site "Chess.com"]
[Date "2024.02.20"]
[Round "10"]
[White "AndresDelgado77"]
[Black "giomar27"]
[Result "1-0"]
[WhiteElo "2282"]
[BlackElo "2423"]
[TimeControl "180+1"]
[EndTime "15:53:00 PST"]
[Termination "AndresDelgado77 won by resignation"]

1. e4 {[%clk 0:02:33.9]} 1... f6 {[%clk 0:03:00.9]} 2. d4 {[%clk 0:02:32.7]}
2... g6 {[%clk 0:03:01.4]} 3. h4 {[%clk 0:02:32]} 3... Nh6 {[%clk 0:03:01.5]} 4.
h5 {[%clk 0:02:31.1]} 4... g5 {[%clk 0:03:02]} 5. f4 {[%clk 0:02:29.7]} 5... g4
{[%clk 0:02:58.9]} 6. f5 {[%clk 0:02:27.9]} 6... d5 {[%clk 0:02:56.8]} 7. Nc3
{[%clk 0:02:17.4]} 7... dxe4 {[%clk 0:02:56.4]} 8. Bxh6 {[%clk 0:02:07.7]} 8...
Bxh6 {[%clk 0:02:56.1]} 9. Qxg4 {[%clk 0:02:08.1]} 9... Nc6 {[%clk 0:02:50]} 10.
Bb5 {[%clk 0:02:03.5]} 10... Bd7 {[%clk 0:02:49.3]} 11. Rd1 {[%clk 0:01:57.8]}
11... a6 {[%clk 0:02:48.1]} 12. Bc4 {[%clk 0:01:55.4]} 12... Na5 {[%clk
0:02:31.9]} 13. Be6 {[%clk 0:01:50.9]} 13... Bxe6 {[%clk 0:02:30.2]} 14. fxe6
{[%clk 0:01:50.9]} 14... Qd6 {[%clk 0:02:26.9]} 15. Nge2 {[%clk 0:01:44]} 15...
O-O-O {[%clk 0:02:25.2]} 16. Nxe4 {[%clk 0:01:40.2]} 16... Qb4+ {[%clk 0:02:23]}
17. c3 {[%clk 0:01:39.9]} 17... Qxb2 {[%clk 0:02:20.5]} 18. O-O {[%clk
0:01:39.9]} 18... Nc4 {[%clk 0:02:12.9]} 19. Rb1 {[%clk 0:01:32.7]} 19... Qc2
{[%clk 0:02:12.2]} 20. Nc5 {[%clk 0:01:25.3]} 20... Nd2 {[%clk 0:01:44.2]} 21.
Rfc1 {[%clk 0:01:14.2]} 21... f5 {[%clk 0:01:18.6]} 22. Rxc2 {[%clk 0:00:53.8]}
22... fxg4 {[%clk 0:01:16]} 23. Rxb7 {[%clk 0:00:53.9]} 23... Rdf8 {[%clk
0:01:11.6]} 24. Rcb2 {[%clk 0:00:49.9]} 24... Rf1+ {[%clk 0:01:08.8]} 25. Kh2
{[%clk 0:00:49.6]} 25... g3+ {[%clk 0:01:03.1]} 26. Nxg3 {[%clk 0:00:48.1]} 1-0

[Event "Late-Titled-Tuesday-Blitz-February-20-2024"]
[Site "Chess.com"]
[Date "2024.02.20"]
[Round "10"]
[White "Bryanl106"]
[Black "vovachesss"]
[Result "1/2-1/2"]
[WhiteElo "2554"]
[BlackElo "2786"]
[TimeControl "180+1"]
[EndTime "15:53:01 PST"]
[Termination "Game drawn by repetition"]

1. e4 {[%clk 0:03:00.9]} 1... c5 {[%clk 0:02:59.2]} 2. Nf3 {[%clk 0:03:00.7]}
2... d6 {[%clk 0:02:59.8]} 3. d4 {[%clk 0:03:01]} 3... cxd4 {[%clk 0:03:00.4]}
4. Nxd4 {[%clk 0:03:01.9]} 4... Nf6 {[%clk 0:03:01]} 5. Nc3 {[%clk 0:03:02.6]}
5... Nc6 {[%clk 0:03:01.8]} 6. Bg5 {[%clk 0:03:01.9]} 6... Bd7 {[%clk
0:03:02.1]} 7. f3 {[%clk 0:02:58.8]} 7... Rc8 {[%clk 0:03:01.6]} 8. Qd2 {[%clk
0:02:58.6]} 8... Qa5 {[%clk 0:03:01.1]} 9. Nb3 {[%clk 0:02:56.9]} 9... Qc7
{[%clk 0:03:00.8]} 10. O-O-O {[%clk 0:02:55.4]} 10... a6 {[%clk 0:03:00.7]} 11.
Bxf6 {[%clk 0:02:53.9]} 11... gxf6 {[%clk 0:03:00.5]} 12. Kb1 {[%clk 0:02:50.7]}
12... b5 {[%clk 0:02:55]} 13. f4 {[%clk 0:02:48.7]} 13... e6 {[%clk 0:02:51.5]}
14. g3 {[%clk 0:02:46.4]} 14... h5 {[%clk 0:02:36]} 15. Bh3 {[%clk 0:02:43.4]}
15... b4 {[%clk 0:02:32.2]} 16. Nd5 {[%clk 0:02:40.8]} 16... exd5 {[%clk
0:02:26.3]} 17. Bxd7+ {[%clk 0:02:41.7]} 17... Kxd7 {[%clk 0:02:24.1]} 18. exd5
{[%clk 0:02:40.8]} 18... Ne7 {[%clk 0:02:22.3]} 19. Rhe1 {[%clk 0:02:38.6]}
19... a5 {[%clk 0:02:19.8]} 20. Nd4 {[%clk 0:02:36.3]} 20... f5 {[%clk
0:02:07.6]} 21. Qd3 {[%clk 0:02:33.7]} 21... Qc4 {[%clk 0:02:01.6]} 22. Rxe7+
{[%clk 0:02:28.4]} 22... Bxe7 {[%clk 0:01:50.4]} 23. Qxf5+ {[%clk 0:02:26.8]}
23... Kc7 {[%clk 0:01:33.8]} 24. b3 {[%clk 0:02:26.1]} 24... Qc5 {[%clk
0:01:06.6]} 25. Qxf7 {[%clk 0:02:25]} 25... Kb6 {[%clk 0:01:07.2]} 26. Qxe7
{[%clk 0:02:24.5]} 26... Rhe8 {[%clk 0:01:06.8]} 27. Qh7 {[%clk 0:02:12.4]}
27... Qxd5 {[%clk 0:01:00.4]} 28. Qg6 {[%clk 0:02:05.1]} 28... Re4 {[%clk
0:00:37.6]} 29. Qf5 {[%clk 0:01:57.6]} 29... Rc5 {[%clk 0:00:26.7]} 30. Qf6
{[%clk 0:01:51.1]} 30... Rc3 {[%clk 0:00:18.6]} 31. Qf5 {[%clk 0:01:42]} 31...
Rc5 {[%clk 0:00:18.1]} 32. Qf6 {[%clk 0:01:41.8]} 32... Rc3 {[%clk 0:00:17.8]}
33. Qf5 {[%clk 0:01:42]} 33... Rc5 {[%clk 0:00:18.3]} 1/2-1/2

[Event "Late-Titled-Tuesday-Blitz-February-20-2024"]
[Site "Chess.com"]
[Date "2024.02.20"]
[Round "10"]
[White "Balla_Tamas"]
[Black "prime-morty"]
[Result "1-0"]
[WhiteElo "2401"]
[BlackElo "2537"]
[TimeControl "180+1"]
[EndTime "15:53:03 PST"]
[Termination "Balla_Tamas won by resignation"]

1. e4 {[%clk 0:03:00.4]} 1... d5 {[%clk 0:02:59.8]} 2. exd5 {[%clk 0:03:00.6]}
2... Qxd5 {[%clk 0:03:00.7]} 3. Nc3 {[%clk 0:03:01.2]} 3... Qa5 {[%clk 0:03:01]}
4. d4 {[%clk 0:03:01.5]} 4... Nf6 {[%clk 0:03:01.1]} 5. Bc4 {[%clk 0:02:59.8]}
5... e6 {[%clk 0:03:01.2]} 6. Bd2 {[%clk 0:02:54.5]} 6... Bb4 {[%clk 0:03:00.8]}
7. Nf3 {[%clk 0:02:52.9]} 7... Nc6 {[%clk 0:03:00]} 8. O-O {[%clk 0:02:52.1]}
8... O-O {[%clk 0:02:58.4]} 9. a3 {[%clk 0:02:47.8]} 9... Bxc3 {[%clk
0:02:58.5]} 10. Bxc3 {[%clk 0:02:48.7]} 10... Qh5 {[%clk 0:02:57.2]} 11. Be2
{[%clk 0:02:47.5]} 11... Qd5 {[%clk 0:02:49.6]} 12. Bd3 {[%clk 0:02:38.6]} 12...
Ne4 {[%clk 0:02:43.8]} 13. Qe2 {[%clk 0:02:33.6]} 13... Nxc3 {[%clk 0:02:43.7]}
14. bxc3 {[%clk 0:02:34.5]} 14... Qh5 {[%clk 0:02:39.7]} 15. Rfe1 {[%clk
0:02:24.5]} 15... Bd7 {[%clk 0:02:38.4]} 16. Qe4 {[%clk 0:02:16]} 16... Rad8
{[%clk 0:02:36.1]} 17. Qf4 {[%clk 0:02:15]} 17... Rc8 {[%clk 0:02:26.8]} 18. Ne5
{[%clk 0:02:13.1]} 18... Be8 {[%clk 0:02:22.5]} 19. Re3 {[%clk 0:02:08.9]} 19...
Nxe5 {[%clk 0:02:17.7]} 20. dxe5 {[%clk 0:01:58.1]} 20... f5 {[%clk 0:01:57.5]}
21. exf6 {[%clk 0:01:48.7]} 21... Rxf6 {[%clk 0:01:57.4]} 22. Qe4 {[%clk
0:01:45.3]} 22... Bc6 {[%clk 0:01:55.3]} 23. Qd4 {[%clk 0:01:30.1]} 23... Rcf8
{[%clk 0:01:54.9]} 24. Rh3 {[%clk 0:01:20.1]} 24... Rxf2 {[%clk 0:01:44.5]} 25.
Qxf2 {[%clk 0:01:12.5]} 25... Rxf2 {[%clk 0:01:43.8]} 26. Rxh5 {[%clk
0:01:12.1]} 26... Rxg2+ {[%clk 0:01:43.8]} 27. Kf1 {[%clk 0:01:12.7]} 27... g6
{[%clk 0:01:42.6]} 28. Re5 {[%clk 0:01:08.9]} 28... Rxh2 {[%clk 0:01:41.9]} 29.
Rae1 {[%clk 0:01:07.9]} 29... Bd7 {[%clk 0:01:29.9]} 30. Bc4 {[%clk 0:01:06.6]}
30... Rxc2 {[%clk 0:01:28.1]} 31. Bxe6+ {[%clk 0:01:07]} 31... Bxe6 {[%clk
0:01:28.5]} 32. Rxe6 {[%clk 0:01:07.9]} 32... Rxc3 {[%clk 0:01:28.9]} 33. Re7
{[%clk 0:01:08.4]} 33... b5 {[%clk 0:01:24.1]} 34. Rd7 {[%clk 0:01:08.5]} 34...
Kf8 {[%clk 0:01:24.5]} 35. Ree7 {[%clk 0:01:07.3]} 35... Rxa3 {[%clk 0:01:23.6]}
36. Rxh7 {[%clk 0:01:07.6]} 36... Kg8 {[%clk 0:01:22.4]} 37. Rxc7 {[%clk
0:01:07.9]} 37... a5 {[%clk 0:01:20.9]} 38. Rhd7 {[%clk 0:01:07]} 38... Rf3+
{[%clk 0:01:20.6]} 39. Kg2 {[%clk 0:01:07.3]} 39... Rf5 {[%clk 0:01:15]} 40.
Rd8+ {[%clk 0:01:07.1]} 40... Rf8 {[%clk 0:01:15.4]} 41. Rxf8+ {[%clk
0:01:06.9]} 41... Kxf8 {[%clk 0:01:16.3]} 42. Rb7 {[%clk 0:01:07.1]} 1-0

[Event "Late-Titled-Tuesday-Blitz-February-20-2024"]
[Site "Chess.com"]
[Date "2024.02.20"]
[Round "10"]
[White "Fandorine"]
[Black "MKlose11"]
[Result "1-0"]
[WhiteElo "2909"]
[BlackElo "2620"]
[TimeControl "180+1"]
[EndTime "15:53:04 PST"]
[Termination "Fandorine won by resignation"]

1. d4 {[%clk 0:03:00.9]} 1... Nf6 {[%clk 0:02:57.7]} 2. c4 {[%clk 0:03:01.2]}
2... c5 {[%clk 0:02:55.5]} 3. Nf3 {[%clk 0:02:58]} 3... cxd4 {[%clk 0:02:55.3]}
4. Nxd4 {[%clk 0:02:57.4]} 4... Nc6 {[%clk 0:02:56.2]} 5. Nc3 {[%clk 0:02:55.3]}
5... d6 {[%clk 0:02:53.3]} 6. g3 {[%clk 0:02:54.4]} 6... g6 {[%clk 0:02:53.6]}
7. Bg2 {[%clk 0:02:53.1]} 7... Bd7 {[%clk 0:02:53.5]} 8. O-O {[%clk 0:02:53]}
8... Bg7 {[%clk 0:02:53.6]} 9. b3 {[%clk 0:02:52.4]} 9... O-O {[%clk 0:02:53.7]}
10. Bb2 {[%clk 0:02:52.4]} 10... Qa5 {[%clk 0:02:54.3]} 11. e3 {[%clk
0:02:47.1]} 11... Rfe8 {[%clk 0:02:54.3]} 12. h3 {[%clk 0:02:44.5]} 12... Qh5
{[%clk 0:02:53.4]} 13. Qxh5 {[%clk 0:02:43.5]} 13... Nxh5 {[%clk 0:02:53.5]} 14.
Rfd1 {[%clk 0:02:42.7]} 14... Nf6 {[%clk 0:02:50.3]} 15. Rac1 {[%clk 0:02:41]}
15... Rac8 {[%clk 0:02:49.3]} 16. g4 {[%clk 0:02:39.7]} 16... Red8 {[%clk
0:02:25.8]} 17. Kf1 {[%clk 0:02:37.6]} 17... Nxd4 {[%clk 0:02:20.2]} 18. exd4
{[%clk 0:02:34.9]} 18... Bc6 {[%clk 0:02:20.5]} 19. Bxc6 {[%clk 0:02:34.2]}
19... bxc6 {[%clk 0:02:19]} 20. Rc2 {[%clk 0:02:21.9]} 20... Nd7 {[%clk
0:02:08.7]} 21. d5 {[%clk 0:02:18.3]} 21... c5 {[%clk 0:02:04.3]} 22. Re2 {[%clk
0:02:09.2]} 22... Kf8 {[%clk 0:01:59.7]} 23. Rde1 {[%clk 0:02:06.5]} 23... Re8
{[%clk 0:01:56.8]} 24. f4 {[%clk 0:01:58.1]} 24... a6 {[%clk 0:01:53.4]} 25. Kg2
{[%clk 0:01:55.9]} 25... Rb8 {[%clk 0:01:36.8]} 26. g5 {[%clk 0:01:52.3]} 26...
h5 {[%clk 0:01:22.9]} 27. h4 {[%clk 0:01:43.4]} 27... Rb7 {[%clk 0:01:12.2]} 28.
Ba1 {[%clk 0:01:42.6]} 28... Rb6 {[%clk 0:01:01]} 29. Na4 {[%clk 0:01:40.4]}
29... Bxa1 {[%clk 0:00:49.6]} 30. Nxb6 {[%clk 0:01:39.7]} 30... Nxb6 {[%clk
0:00:50.5]} 31. Rxa1 {[%clk 0:01:39.4]} 31... a5 {[%clk 0:00:50.4]} 32. Rf1
{[%clk 0:01:39.3]} 32... e6 {[%clk 0:00:47.2]} 33. Rfe1 {[%clk 0:01:33.7]} 33...
Ke7 {[%clk 0:00:39.1]} 34. dxe6 {[%clk 0:01:33]} 34... f6 {[%clk 0:00:39.5]} 35.
gxf6+ {[%clk 0:01:33.3]} 35... Kxf6 {[%clk 0:00:39.3]} 36. e7 {[%clk 0:01:34.2]}
36... Nd7 {[%clk 0:00:36.7]} 37. Re6+ {[%clk 0:01:32.9]} 37... Kf7 {[%clk
0:00:36.4]} 38. Rxd6 {[%clk 0:01:32.4]} 1-0

[Event "Late-Titled-Tuesday-Blitz-February-20-2024"]
[Site "Chess.com"]
[Date "2024.02.20"]
[Round "10"]
[White "IraZyne"]
[Black "el008"]
[Result "0-1"]
[WhiteElo "2351"]
[BlackElo "2524"]
[TimeControl "180+1"]
[EndTime "15:53:18 PST"]
[Termination "el008 won by resignation"]

1. e4 {[%clk 0:02:59.7]} 1... e6 {[%clk 0:03:00.9]} 2. d4 {[%clk 0:02:57.8]}
2... d5 {[%clk 0:03:01.3]} 3. Nc3 {[%clk 0:02:58.3]} 3... Nf6 {[%clk 0:03:00.7]}
4. e5 {[%clk 0:02:58]} 4... Nfd7 {[%clk 0:03:01]} 5. f4 {[%clk 0:02:56.9]} 5...
c5 {[%clk 0:03:01.6]} 6. Be3 {[%clk 0:02:56.8]} 6... Nc6 {[%clk 0:03:01]} 7.
Nce2 {[%clk 0:02:56.8]} 7... cxd4 {[%clk 0:03:00.6]} 8. Nxd4 {[%clk 0:02:56.3]}
8... Qb6 {[%clk 0:03:01.3]} 9. b3 {[%clk 0:02:50.8]} 9... Bc5 {[%clk 0:03:01.6]}
10. Ngf3 {[%clk 0:02:50.8]} 10... Bb4+ {[%clk 0:02:55.9]} 11. Kf2 {[%clk
0:02:49.2]} 11... Bc5 {[%clk 0:02:54.4]} 12. c3 {[%clk 0:02:48.4]} 12... a5
{[%clk 0:02:54]} 13. Bd3 {[%clk 0:02:44.8]} 13... g6 {[%clk 0:02:53.7]} 14. Rb1
{[%clk 0:02:41.3]} 14... Qa7 {[%clk 0:02:51.8]} 15. Qe2 {[%clk 0:02:40.1]} 15...
Ne7 {[%clk 0:02:49.8]} 16. Nb5 {[%clk 0:02:31.6]} 16... Qb6 {[%clk 0:02:43.5]}
17. Nd6+ {[%clk 0:02:25.1]} 17... Kf8 {[%clk 0:02:43.9]} 18. Bd4 {[%clk
0:02:23.7]} 18... Nc6 {[%clk 0:02:40.1]} 19. Qe3 {[%clk 0:02:21.2]} 19... Bxd4
{[%clk 0:02:38.2]} 20. cxd4 {[%clk 0:02:18.4]} 20... Nb4 {[%clk 0:02:38.3]} 21.
Rbc1 {[%clk 0:02:07]} 21... Qd8 {[%clk 0:02:35.4]} 22. a3 {[%clk 0:02:02.9]}
22... Nc6 {[%clk 0:02:33.9]} 23. g4 {[%clk 0:01:59.3]} 23... h5 {[%clk
0:02:33.5]} 24. h3 {[%clk 0:01:56.4]} 24... f6 {[%clk 0:02:30]} 25. Bxg6 {[%clk
0:01:49.6]} 25... Ne7 {[%clk 0:02:29.1]} 26. gxh5 {[%clk 0:01:47.5]} 26... Ng8
{[%clk 0:02:26.5]} 27. f5 {[%clk 0:01:43.3]} 27... fxe5 {[%clk 0:02:25.3]} 28.
dxe5 {[%clk 0:01:42.3]} 28... Ndf6 {[%clk 0:02:24.5]} 29. Nxc8 {[%clk
0:01:35.7]} 29... Ne4+ {[%clk 0:02:24.3]} 30. Kg2 {[%clk 0:01:32]} 30... Rxc8
{[%clk 0:02:25]} 31. fxe6 {[%clk 0:01:29.1]} 31... Ne7 {[%clk 0:02:24.3]} 32.
Qf4+ {[%clk 0:01:27.6]} 32... Kg7 {[%clk 0:02:18.6]} 33. Qf7+ {[%clk 0:01:26.2]}
33... Kh6 {[%clk 0:02:18.9]} 34. Bxe4 {[%clk 0:01:10]} 34... Rg8+ {[%clk
0:02:11.4]} 35. Bg6 {[%clk 0:01:08.5]} 35... Nxg6 {[%clk 0:02:11.3]} 36. hxg6
{[%clk 0:01:07]} 36... Rxg6+ {[%clk 0:02:12.2]} 37. Kh2 {[%clk 0:01:05.8]} 37...
Qb6 {[%clk 0:02:12.2]} 38. Qf4+ {[%clk 0:00:58]} 38... Kg7 {[%clk 0:02:11.3]}
39. Ng5 {[%clk 0:00:53.9]} 39... Rf8 {[%clk 0:02:10.2]} 40. Nf7 {[%clk
0:00:49.4]} 40... Qxe6 {[%clk 0:02:10.5]} 41. Rhf1 {[%clk 0:00:45.9]} 41... Rxf7
{[%clk 0:02:10]} 42. Qxf7+ {[%clk 0:00:45.5]} 42... Qxf7 {[%clk 0:02:10.9]} 43.
Rxf7+ {[%clk 0:00:45.3]} 43... Kxf7 {[%clk 0:02:11.8]} 44. Rc7+ {[%clk
0:00:43.9]} 44... Ke6 {[%clk 0:02:12.3]} 45. Rxb7 {[%clk 0:00:44.4]} 45... Kxe5
{[%clk 0:02:12.8]} 46. Rb5 {[%clk 0:00:44.6]} 46... Ke4 {[%clk 0:02:09.8]} 47.
Rxa5 {[%clk 0:00:44.4]} 47... d4 {[%clk 0:02:10.4]} 48. Ra8 {[%clk 0:00:44.1]}
48... Rd6 {[%clk 0:02:10.4]} 49. Re8+ {[%clk 0:00:42.6]} 49... Kf3 {[%clk
0:02:10.7]} 50. Rf8+ {[%clk 0:00:41.9]} 50... Ke2 {[%clk 0:02:10.5]} 51. Re8+
{[%clk 0:00:42.1]} 51... Kd1 {[%clk 0:02:11]} 52. Kg3 {[%clk 0:00:30.8]} 52...
d3 {[%clk 0:02:11.5]} 53. Kf3 {[%clk 0:00:30.4]} 53... d2 {[%clk 0:02:11.6]} 54.
Kf2 {[%clk 0:00:28.9]} 54... Kc2 {[%clk 0:02:10.3]} 55. Rc8+ {[%clk 0:00:28.2]}
55... Kb2 {[%clk 0:02:09.4]} 0-1

[Event "Late-Titled-Tuesday-Blitz-February-20-2024"]
[Site "Chess.com"]
[Date "2024.02.20"]
[Round "10"]
[White "Slovineanu"]
[Black "TokChess"]
[Result "1-0"]
[WhiteElo "2468"]
[BlackElo "2551"]
[TimeControl "180+1"]
[EndTime "15:53:22 PST"]
[Termination "Slovineanu won by resignation"]

1. d4 {[%clk 0:02:55.4]} 1... Nf6 {[%clk 0:02:59.1]} 2. Nf3 {[%clk 0:02:55.3]}
2... e6 {[%clk 0:02:57.3]} 3. c4 {[%clk 0:02:54.8]} 3... d5 {[%clk 0:02:57.4]}
4. e3 {[%clk 0:02:54.8]} 4... a6 {[%clk 0:02:50.3]} 5. b3 {[%clk 0:02:54]} 5...
b6 {[%clk 0:02:48]} 6. Bd3 {[%clk 0:02:52.9]} 6... Bb7 {[%clk 0:02:48.2]} 7. O-O
{[%clk 0:02:52.9]} 7... Bd6 {[%clk 0:02:45.7]} 8. Bb2 {[%clk 0:02:52.4]} 8...
O-O {[%clk 0:02:45.6]} 9. Nc3 {[%clk 0:02:52.9]} 9... Nbd7 {[%clk 0:02:44.9]}
10. Rc1 {[%clk 0:02:52.1]} 10... Qe7 {[%clk 0:02:36.4]} 11. a4 {[%clk
0:02:52.4]} 11... dxc4 {[%clk 0:02:34]} 12. bxc4 {[%clk 0:02:52]} 12... e5
{[%clk 0:02:22.6]} 13. e4 {[%clk 0:02:51.8]} 13... Rfe8 {[%clk 0:02:16]} 14. Re1
{[%clk 0:02:46.8]} 14... Rad8 {[%clk 0:02:15.2]} 15. Nd5 {[%clk 0:02:44.5]}
15... Nxd5 {[%clk 0:01:50.2]} 16. exd5 {[%clk 0:02:43.7]} 16... Qf6 {[%clk
0:01:42.6]} 17. dxe5 {[%clk 0:02:02.8]} 17... Nxe5 {[%clk 0:01:42.7]} 18. Nxe5
{[%clk 0:02:02.6]} 18... Bxe5 {[%clk 0:01:39.8]} 19. Qh5 {[%clk 0:01:59.4]}
19... g5 {[%clk 0:00:46.5]} 20. Rxe5 {[%clk 0:01:16.9]} 20... Rxe5 {[%clk
0:00:46]} 21. f4 {[%clk 0:01:16.7]} 21... Qxf4 {[%clk 0:00:08.3]} 22. Qxh7+
{[%clk 0:01:12.6]} 22... Kf8 {[%clk 0:00:08.2]} 23. Qh8+ {[%clk 0:01:11.8]} 1-0

[Event "Late-Titled-Tuesday-Blitz-February-20-2024"]
[Site "Chess.com"]
[Date "2024.02.20"]
[Round "10"]
[White "FredddieCroderg"]
[Black "CFalcons8"]
[Result "1-0"]
[WhiteElo "2232"]
[BlackElo "2408"]
[TimeControl "180+1"]
[EndTime "15:53:23 PST"]
[Termination "FredddieCroderg won by resignation"]

1. e4 {[%clk 0:02:07.1]} 1... e5 {[%clk 0:02:58.8]} 2. Nf3 {[%clk 0:02:06.3]}
2... Nc6 {[%clk 0:02:58.7]} 3. Bb5 {[%clk 0:02:05.6]} 3... a6 {[%clk 0:02:53.4]}
4. Bxc6 {[%clk 0:02:05.4]} 4... dxc6 {[%clk 0:02:54.3]} 5. O-O {[%clk
0:02:04.6]} 5... Bd6 {[%clk 0:02:52.7]} 6. d3 {[%clk 0:02:04.2]} 6... Nf6 {[%clk
0:02:48.7]} 7. Nbd2 {[%clk 0:02:03.7]} 7... O-O {[%clk 0:02:48.1]} 8. Nc4 {[%clk
0:02:03.4]} 8... Qe7 {[%clk 0:02:47.2]} 9. Bg5 {[%clk 0:02:01.7]} 9... h6 {[%clk
0:02:45.3]} 10. Bh4 {[%clk 0:02:01.5]} 10... Bg4 {[%clk 0:02:44.8]} 11. h3
{[%clk 0:01:59.4]} 11... Bxf3 {[%clk 0:02:44.9]} 12. Qxf3 {[%clk 0:01:57.4]}
12... g5 {[%clk 0:02:45.8]} 13. Bg3 {[%clk 0:01:49.3]} 13... Qe6 {[%clk
0:02:45.4]} 14. Ne3 {[%clk 0:01:48]} 14... Kh7 {[%clk 0:02:32.3]} 15. Nf5 {[%clk
0:01:47.7]} 15... Rg8 {[%clk 0:02:30.2]} 16. Qe2 {[%clk 0:01:42.9]} 16... Rg6
{[%clk 0:02:04.3]} 17. Kh2 {[%clk 0:01:41.4]} 17... h5 {[%clk 0:01:38.6]} 18. h4
{[%clk 0:01:35.4]} 18... Ng4+ {[%clk 0:01:38.2]} 19. Kh1 {[%clk 0:01:30.1]}
19... Be7 {[%clk 0:01:29.1]} 20. f3 {[%clk 0:01:26.8]} 20... Rag8 {[%clk
0:01:22.4]} 21. fxg4 {[%clk 0:01:23.7]} 21... gxh4 {[%clk 0:01:21.9]} 22. Bxh4
{[%clk 0:01:00.4]} 22... Bxh4 {[%clk 0:01:21]} 23. Nxh4 {[%clk 0:00:59.6]} 23...
Rxg4 {[%clk 0:01:20.9]} 24. Qf2 {[%clk 0:00:54]} 24... Rf4 {[%clk 0:01:17.6]}
25. Qe1 {[%clk 0:00:47.4]} 25... Rfg4 {[%clk 0:01:16.4]} 26. Rf5 {[%clk
0:00:39.5]} 26... R8g5 {[%clk 0:00:56.7]} 27. Qf2 {[%clk 0:00:33.5]} 1-0

[Event "Late-Titled-Tuesday-Blitz-February-20-2024"]
[Site "Chess.com"]
[Date "2024.02.20"]
[Round "10"]
[White "jcibarra"]
[Black "Rud_Makarian"]
[Result "0-1"]
[WhiteElo "2932"]
[BlackElo "3076"]
[TimeControl "180+1"]
[EndTime "15:53:25 PST"]
[Termination "Rud_Makarian won by resignation"]

1. e4 {[%clk 0:03:00.9]} 1... c5 {[%clk 0:03:00.7]} 2. Nf3 {[%clk 0:02:59.8]}
2... e6 {[%clk 0:03:01.4]} 3. b3 {[%clk 0:02:54.4]} 3... Nc6 {[%clk 0:03:00.4]}
4. Bb5 {[%clk 0:02:53.4]} 4... Nd4 {[%clk 0:02:48.8]} 5. Nxd4 {[%clk 0:02:53]}
5... cxd4 {[%clk 0:02:49.7]} 6. Bb2 {[%clk 0:02:53.3]} 6... a6 {[%clk
0:02:47.6]} 7. Be2 {[%clk 0:02:51.1]} 7... Bc5 {[%clk 0:02:45.4]} 8. c3 {[%clk
0:02:47.4]} 8... dxc3 {[%clk 0:02:38.2]} 9. Bxc3 {[%clk 0:02:43.9]} 9... Nf6
{[%clk 0:02:37.2]} 10. d4 {[%clk 0:02:41.5]} 10... Be7 {[%clk 0:02:35]} 11. Nd2
{[%clk 0:02:41.1]} 11... O-O {[%clk 0:02:33.5]} 12. O-O {[%clk 0:02:39.9]} 12...
b5 {[%clk 0:02:30.4]} 13. d5 {[%clk 0:02:30.9]} 13... Bb7 {[%clk 0:02:20.7]} 14.
Bf3 {[%clk 0:02:08.9]} 14... exd5 {[%clk 0:02:07.9]} 15. e5 {[%clk 0:01:20.7]}
15... Ne4 {[%clk 0:02:07.2]} 16. Bxe4 {[%clk 0:01:21.4]} 16... dxe4 {[%clk
0:02:08.1]} 17. Qg4 {[%clk 0:01:21.1]} 17... Rc8 {[%clk 0:01:43.5]} 18. Bd4
{[%clk 0:01:06.7]} 18... f5 {[%clk 0:01:24.4]} 19. exf6 {[%clk 0:01:03.3]} 19...
Bxf6 {[%clk 0:01:24.8]} 20. Bxf6 {[%clk 0:01:00.2]} 20... Qxf6 {[%clk
0:01:25.2]} 21. Qxd7 {[%clk 0:00:23.3]} 21... Bc6 {[%clk 0:01:12.1]} 22. Qa7
{[%clk 0:00:22.8]} 22... Rcd8 {[%clk 0:01:12.3]} 23. Rfd1 {[%clk 0:00:19.3]}
23... Rxd2 {[%clk 0:01:09]} 0-1